fUST/lending_fUST_20240515
["ID","MTS","AMOUNT","RATE_DAILY","PERIOD"]
[327006893,1715707850783,-251.537377,0.0002754,2]
[327006894,1715707850792,-251.537377,0.0002754,2]
[327006895,1715707850802,-206.554417,0.0002754,2]
[327006896,1715707850811,-206.554417,0.0002754,2]
[327006897,1715707850824,-151.0,0.0002754,2]
[327006898,1715707850834,-3000.0,0.0002754,2]
[327006899,1715707850843,-151.0,0.0002754,2]
[327006900,1715707850852,-151.0,0.0002754,2]
[327006901,1715707850862,-261.896948,0.0002754,2]
[327006902,1715707850872,-496.909748,0.0002754,2]
[327006903,1715707850882,-261.896948,0.0002754,2]
[327006904,1715707850891,-496.909748,0.0002754,2]
[327006905,1715707850901,-251.520683,0.0002754,2]
[327006906,1715707850911,-251.520683,0.0002754,2]
[327006907,1715707850921,-1000.0,0.00027549,2]
[327006908,1715707850930,-3000.0,0.0002755,2]
[327006909,1715707850940,-151.0,0.0002755,2]
[327006910,1715707850949,-151.0,0.0002755,2]
[327006911,1715707850958,-151.0,0.0002755,2]
[327006912,1715707850967,-1509.320456,0.0002755,2]
[327006913,1715707850976,-1509.320456,0.0002755,2]
[327006914,1715707850986,-151.0,0.0002756,2]
[327006915,1715707850995,-151.0,0.0002756,2]
[327006916,1715707851005,-151.0,0.0002756,2]
[327006917,1715707851014,-251.537377,0.0002756,2]
[327006918,1715707851023,-251.537381,0.0002756,2]
[327006919,1715707851032,-206.554417,0.0002756,2]
[327006920,1715707851042,-206.554417,0.0002756,2]
[327006921,1715707851051,-3000.0,0.0002756,2]
[327006922,1715707851060,-212.042545,0.0002756,2]
[327006923,1715707851069,-212.042545,0.0002756,2]
[327006924,1715707851079,-504.058347,0.0002756,2]
[327006925,1715707851088,-504.058347,0.0002756,2]
[327006926,1715707851097,-151.0,0.0002756,2]
[327006927,1715707851107,-151.0,0.0002756,2]
[327006928,1715707851116,-261.896948,0.0002756,2]
[327006929,1715707851126,-496.909748,0.0002756,2]
[327006930,1715707851136,-261.896948,0.0002756,2]
[327006931,1715707851145,-496.909748,0.0002756,2]
[327006932,1715707851155,-251.520683,0.0002756,2]
[327006933,1715707851164,-251.520683,0.0002756,2]
[327006934,1715707851174,-551.178273,0.0002756,2]
[327006935,1715707851184,-551.17827314,0.0002756,2]
[327006936,1715707851193,-3000.0,0.0002757,2]
[327006937,1715707851203,-3000.0,0.0002758,2]
[327006938,1715707851213,-212.042545,0.0002758,2]
[327006939,1715707851222,-212.042545,0.0002758,2]
[327006940,1715707851232,-151.0,0.0002758,2]
[327006941,1715707851241,-238.507095,0.0002758,2]
[327006942,1715707851251,-504.058347,0.0002758,2]
[327006943,1715707851260,-504.058355,0.0002758,2]
[327006944,1715707851270,-297.084048,0.0002758,2]
[327006945,1715707851279,-1509.320456,0.0002758,2]
[327006946,1715707851288,-1509.320447,0.0002758,2]
[327006947,1715707851298,-206.554417,0.0002759,2]
[327006948,1715707851307,-206.554417,0.0002759,2]
[327006949,1715707851317,-3000.0,0.0002759,2]
[327006950,1715707851327,-151.0,0.0002759,2]
[327006951,1715707851336,-151.0,0.0002759,2]
[327006952,1715707851346,-261.896948,0.0002759,2]
[327006953,1715707851355,-496.909748,0.0002759,2]
[327006954,1715707851365,-261.896948,0.0002759,2]
[327006955,1715707851374,-496.909748,0.0002759,2]
[327006956,1715707851384,-251.520683,0.0002759,2]
[327006957,1715707851393,-251.520683,0.0002759,2]
[327006958,1715707851404,-309.4430026,0.00027598,2]
[327006959,1715707851414,-4870.469652,0.000276,2]
[327006960,1715707851424,-430.88927215,0.00027999,2]
[327006961,1715707851434,-5798.63672671,0.00028,4]
[327006962,1715707851447,-151.0,0.00028,2]
[327006963,1715707851571,-203.523527,0.00028,2]
[327006964,1715707851589,-151.0,0.00028,2]
[327006965,1715707851599,-261.896948,0.00028,2]
[327006966,1715707851608,-496.909748,0.00028,2]
[327006967,1715707851618,-261.896956,0.00028,2]
[327006968,1715707851628,-496.909748,0.00028,2]
[327006969,1715707851637,-251.520683,0.00028,2]
[327006970,1715707851648,-251.520675,0.00028,2]
[327006971,1715707851658,-221.44137162,0.00028009,2]
[327006972,1715707851668,-206.554417,0.0002801,2]
[327006973,1715707851677,-206.554423,0.0002801,2]
[327006974,1715707851686,-339.59880615,0.00028303,2]
[327006975,1715707851696,-18849.20373175,0.000288,2]
[327006976,1715707851705,-4525.19729154,0.000288,2]
[327006977,1715707851714,-156.522463,0.000288,2]
[327006978,1715707851723,-166.200272,0.00028986,2]
[327006979,1715707851732,-307.04028319,0.00029,2]
[327006980,1715707851741,-154.81422293,0.00029249,2]
[327006981,1715707851751,-49667.27327307,0.0002925,3]
[327006982,1715707851760,-150.0,0.0002926,18]
[327006983,1715707851769,-373.74046683,0.00029298,2]
[327006984,1715707851779,-88888.0,0.00029299,3]
[327006985,1715707851788,-18249.61067991,0.00029333,5]
[327006986,1715707851797,-154726.75231016,0.00029333,2]
[327006987,1715707851807,-732.43716653,0.00029397,2]
[327006988,1715707851817,-342.62886925,0.00029397,2]
[327006989,1715707851826,-484.72576423,0.00029398,2]
[327006990,1715707851835,-229.59351145,0.00029398,2]
[327006991,1715707851844,-1000.0,0.00029398,2]
[327006992,1715707851854,-239.24476231,0.00029399,2]
[327006993,1715707851863,-22189.29420136,0.00029399,2]
[327006994,1715707851874,-1000.0,0.00029399,2]
[327006995,1715707851884,-462.77994705,0.00029399,2]
[327006996,1715707851893,-330.49058331,0.00029417,2]
[327006997,1715707851903,-584.66678309,0.00029418,2]
[327006998,1715707851913,-1255.99579668,0.00029498,4]
[327006999,1715707851922,-1000.0,0.000295,2]
[327007000,1715707851932,-409.85990212,0.00029517,2]
[327007001,1715707851941,-9264.70496392,0.00029518,2]
[327007002,1715707851951,-816.21650523,0.00029518,2]
[327007003,1715707851961,-9463.30771988,0.00029519,2]
[327007004,1715707851970,-3058.73651821,0.00029618,2]
[327007005,1715707851979,-260.5,0.00029618,2]
[327007006,1715707851989,-521.97915645,0.00029618,2]
[327007007,1715707851998,-719.2075659,0.00029618,2]
[327007008,1715707852007,-527.88053844,0.00029618,2]
[327007009,1715707852017,-484.2157883,0.00029618,2]
[327007010,1715707852027,-231.2460457,0.00029619,2]
[327007011,1715707852036,-155.15545427,0.00029668,2]
[327007012,1715707852045,-194.23254452,0.00029668,2]
[327007013,1715707852055,-3486.74061658,0.000297,9]
[327007014,1715707852064,-4939.0,0.000297,2]
[327007015,1715707852073,-904.83466521,0.00029767,2]
[327007016,1715707852082,-2594.49494001,0.00029768,2]
[327007017,1715707852092,-492.31289669,0.00029768,2]
[327007018,1715707852101,-236.28343154,0.00029768,2]
[327007019,1715707852110,-1689.25348725,0.00029798,2]
[327007020,1715707852120,-1112.18315624,0.00029798,2]
[327007021,1715707852128,-1896.23906673,0.00029799,2]
[327007022,1715707852138,-679.85845729,0.00029799,2]
[327007023,1715707852148,-154.81422293,0.00029897,2]
[327007024,1715707852157,-6573.78384389,0.00029898,2]
[327007025,1715707852167,-264.20679415,0.00029898,2]
[327007026,1715707852177,-65961.01054969,0.00029899,2]
[327007027,1715707852186,-44076.96690096,0.000299,2]
[327007028,1715707852196,-785.70026484,0.00029952,30]
[327007029,1715707852205,-339.59880615,0.00029953,2]
[327007030,1715707852216,-5000.0,0.0003,2]
[327007031,1715707852225,-1450.37350941,0.0003,4]
[327007032,1715707852234,-7710.81399203,0.0003,10]
[327007033,1715707852244,-17216.59159384,0.0003,10]
[327007034,1715707852253,-1000.0,0.0003,120]
[327007035,1715707852263,-35654.48332886,0.0003,2]
[327007036,1715707852272,-2571.0,0.0003,5]
[327007037,1715707852281,-3241.990961,0.0003,30]
[327007038,1715707852291,-1460.38486961,0.0003,10]
[327007039,1715707852300,-160.0,0.0003,2]
[327007040,1715707852310,-216.0,0.0003,2]
[327007041,1715707852319,-153.0,0.00030103,2]
[327007042,1715707852329,-16623.51,0.00030136,3]
[327007043,1715707852338,-16623.51,0.00030136,3]
[327007044,1715707852347,-16623.51,0.00030136,3]
[327007045,1715707852358,-16623.51,0.00030136,3]
[327007046,1715707852368,-16623.51,0.00030136,3]
[327007047,1715707852377,-16623.51,0.00030136,3]
[327007048,1715707852387,-16623.51,0.00030136,3]
[327007049,1715707852396,-16623.51,0.00030136,3]
[327007050,1715707852406,-16623.51,0.00030136,3]
[327007051,1715707852415,-16623.51,0.00030136,3]
[327007052,1715707852425,-16623.51,0.00030136,3]
[327007053,1715707852435,-16623.51,0.00030136,3]
[327007054,1715707852448,-16623.51,0.00030136,3]
[327007055,1715707852458,-16623.51,0.00030136,3]
[327007056,1715707852467,-16623.51,0.00030136,3]
[327007057,1715707852478,-16623.51,0.00030136,3]
[327007058,1715707852488,-16623.51,0.00030136,3]
[327007059,1715707852497,-16623.51,0.00030136,3]
[327007060,1715707852507,-16623.51,0.00030136,3]
[327007061,1715707852519,-16623.51,0.00030136,3]
[327007062,1715707852528,-16623.51,0.00030136,3]
[327007063,1715707852538,-16623.51,0.00030136,3]
[327007064,1715707852548,-16623.51,0.00030136,3]
[327007065,1715707852558,-16623.59875329,0.00030136,3]
[327007066,1715707852567,-157.19936303,0.00030518,2]
[327007067,1715707852578,-490.398,0.00030543,2]
[327007068,1715707852587,-156.6247541,0.0003108,2]
[327007069,1715707852597,-150.0,0.000311,22]
[327007070,1715707852607,-150.80395486,0.00031288,2]
[327007071,1715707852617,-250.16566464,0.00031288,2]
[327007072,1715707852627,-72097.9854303,0.00031589,4]
[327007073,1715707852637,-339.59880615,0.00031602,2]
[327007074,1715707852647,-301.60790972,0.00031813,4]
[327007075,1715707852658,-256.34059014,0.00031958,4]
[327007076,1715707852668,-206.77,0.0003197,35]
[327007077,1715707852677,-4643.0,0.0003197,35]
[327007078,1715707852688,-215.0,0.0003197,35]
[327007079,1715707852697,-150.5,0.0003197,35]
[327007080,1715707852707,-309.0,0.0003197,35]
[327007081,1715707852717,-542392.56244808,0.00031973,5]
[327007082,1715707852726,-150.5,0.0003198,35]
[327007083,1715707852735,-165.04,0.0003198,35]
[327007084,1715707852746,-155.91,0.0003198,35]
[327007085,1715707852755,-4643.0,0.0003198,35]
[327007086,1715707852765,-215.0,0.0003198,35]
[327007087,1715707852774,-150.5,0.0003198,35]
[327007088,1715707852784,-309.0,0.0003198,35]
[327007089,1715707852793,-150.5,0.0003199,35]
[327007090,1715707852803,-150.5,0.0003199,35]
[327007091,1715707852812,-309.0,0.0003199,35]
[327007092,1715707852822,-150.5,0.0003199,35]
[327007093,1715707852832,-4643.0,0.0003199,35]
[327007094,1715707852842,-215.0,0.0003199,35]
[327007095,1715707852851,-150.5,0.0003199,35]
[327007096,1715707852861,-167759.63806013,0.00032,2]
[327007097,1715707852871,-1000.0,0.00032,120]
[327007098,1715707852881,-562.0,0.000322,5]
[327007099,1715707852890,-562.0,0.000322,5]
[327007100,1715707852901,-289.07239891,0.0003227,4]
[327007101,1715707852910,-603.21581943,0.00032348,7]
[327007102,1715707852920,-462.6982764,0.00032877,2]
[327007103,1715707852930,-293.059664,0.00032906,2]
[327007104,1715707852940,-199.0,0.0003294,25]
[327007105,1715707852950,-216.0,0.00033,2]
[327007106,1715707852959,-216.0,0.00033,2]
[327007107,1715707852969,-1206.43163887,0.00033167,30]
[327007108,1715707852978,-339.59880615,0.00033251,2]
[327007109,1715707852987,-6658.43,0.00033975,2]
[327007110,1715707852996,-6658.43,0.00033975,2]
[327007111,1715707853006,-6658.43,0.00033975,2]
[327007112,1715707853015,-6658.43,0.00033975,2]
[327007113,1715707853025,-6658.43,0.00033975,2]
[327007114,1715707853034,-6658.43,0.00033975,2]
[327007115,1715707853044,-6658.43,0.00033975,2]
[327007116,1715707853054,-6658.43,0.00033975,2]
[327007117,1715707853063,-6658.43,0.00033975,2]
[327007118,1715707853072,-6658.43,0.00033975,2]
[327007119,1715707853082,-997.90230779,0.00034,2]
[327007120,1715707853091,-5000.0,0.00034,3]
[327007121,1715707853101,-155.18729894,0.00034,2]
[327007122,1715707853110,-467.5754666,0.00034,4]
[327007123,1715707853120,-10732.04556975,0.00034,5]
[327007124,1715707853129,-1123.0,0.00034,120]
[327007125,1715707853138,-1000.0,0.00034,34]
[327007126,1715707853147,-1500.0,0.00034,2]
[327007127,1715707853157,-1500.0,0.00034,2]
[327007128,1715707853166,-1500.0,0.00034,2]
[327007129,1715707853175,-1543.75,0.00034,2]
[327007130,1715707853184,-1500.0,0.00034,2]
[327007131,1715707853193,-1500.0,0.00034,2]
[327007132,1715707853203,-213.16425387,0.00034701,7]
[327007133,1715707853213,-1274.61015236,0.00034728,12]
[327007134,1715707853223,-4643.0,0.0003474,35]
[327007135,1715707853233,-215.0,0.0003474,35]
[327007136,1715707853242,-309.0,0.0003474,35]
[327007137,1715707853252,-215.0,0.0003475,35]
[327007138,1715707853262,-4643.0,0.0003475,35]
[327007139,1715707853271,-309.0,0.0003475,35]
[327007140,1715707853281,-215.0,0.0003475,35]
[327007141,1715707853290,-4643.0,0.0003475,35]
[327007142,1715707853300,-309.0,0.0003475,35]
[327007143,1715707853309,-4643.0,0.0003476,35]
[327007144,1715707853319,-215.0,0.0003476,35]
[327007145,1715707853328,-163.25,0.0003476,35]
[327007146,1715707853338,-309.0,0.0003476,35]
[327007147,1715707853347,-215.0,0.0003476,35]
[327007148,1715707853357,-4643.0,0.0003476,35]
[327007149,1715707853367,-309.0,0.0003476,35]
[327007150,1715707853376,-500.0,0.00034794,7]
[327007151,1715707853385,-500.0,0.00034794,7]
[327007152,1715707853395,-500.0,0.00034794,7]
[327007153,1715707853405,-310.08816512,0.00034794,7]
[327007154,1715707853414,-500.0,0.00034794,7]
[327007155,1715707853423,-507.57288769,0.00034794,7]
[327007156,1715707853432,-500.0,0.00034794,7]
[327007157,1715707853447,-500.0,0.00034794,7]
[327007158,1715707853456,-500.0,0.00034794,7]
[327007159,1715707853465,-500.0,0.00034794,7]
[327007160,1715707853474,-787.69,0.00034794,7]
[327007161,1715707853485,-1012.97,0.00034794,7]
[327007162,1715707853494,-155.24190967,0.00034794,7]
[327007163,1715707853503,-500.0,0.00034794,7]
[327007164,1715707853512,-1820.74,0.00034794,7]
[327007165,1715707853524,-500.0,0.00034794,7]
[327007166,1715707853534,-500.0,0.00034794,7]
[327007167,1715707853543,-500.0,0.00034794,7]
[327007168,1715707853552,-500.0,0.00034794,7]
[327007169,1715707853561,-500.0,0.00034794,7]
[327007170,1715707853570,-500.0,0.00034794,7]
[327007171,1715707853580,-500.0,0.00034794,7]
[327007172,1715707853589,-1452.47,0.00034794,7]
[327007173,1715707853598,-500.0,0.00034794,7]
[327007174,1715707853607,-500.0,0.00034794,7]
[327007175,1715707853616,-500.0,0.00034794,7]
[327007176,1715707853625,-500.0,0.00034794,7]
[327007177,1715707853634,-500.0,0.00034794,7]
[327007178,1715707853643,-500.0,0.00034794,7]
[327007179,1715707853654,-500.0,0.00034794,7]
[327007180,1715707853663,-1366.28,0.00034794,4]
[327007181,1715707853672,-501.21101637,0.00034794,7]
[327007182,1715707853681,-520.60757094,0.00034794,7]
[327007183,1715707853690,-500.0,0.00034794,7]
[327007184,1715707853699,-500.0,0.00034794,7]
[327007185,1715707853708,-500.0,0.00034794,7]
[327007186,1715707853717,-500.0,0.00034794,7]
[327007187,1715707853726,-500.0,0.00034794,7]
[327007188,1715707853735,-500.0,0.00034794,7]
[327007189,1715707853745,-500.0,0.00034794,7]
[327007190,1715707853754,-500.0,0.00034794,7]
[327007191,1715707853763,-500.0,0.00034794,7]
[327007192,1715707853772,-500.0,0.00034794,7]
[327007193,1715707853782,-500.0,0.00034794,7]
[327007194,1715707853792,-990.92,0.00034794,7]
[327007195,1715707853802,-500.0,0.00034794,7]
[327007196,1715707853811,-500.0,0.00034794,7]
[327007197,1715707853820,-500.0,0.00034794,7]
[327007198,1715707853829,-500.0,0.00034794,7]
[327007199,1715707853838,-532.534253,0.00034794,7]
[327007200,1715707853848,-229.68339925,0.00034794,7]
[327007201,1715707853858,-2009.74,0.00034794,7]
[327007202,1715707853869,-1119.66,0.00034794,7]
[327007203,1715707853879,-500.0,0.00034794,7]
[327007204,1715707853888,-500.0,0.00034794,7]
[327007205,1715707853899,-1166.48,0.00034794,7]
[327007206,1715707853908,-513.1465157,0.00034794,7]
[327007207,1715707853918,-675.16,0.00034794,7]
[327007208,1715707853927,-532.97478936,0.00034794,7]
[327007209,1715707853937,-500.0,0.00034794,7]
[327007210,1715707853946,-500.0,0.00034794,7]
[327007211,1715707853955,-500.0,0.00034794,7]
[327007212,1715707853964,-500.0,0.00034794,7]
[327007213,1715707853974,-500.0,0.00034794,7]
[327007214,1715707853983,-504.35979372,0.00034794,2]
[327007215,1715707853992,-734.32,0.00034794,7]
[327007216,1715707854001,-500.0,0.00034794,7]
[327007217,1715707854011,-500.0,0.00034794,7]
[327007218,1715707854021,-500.0,0.00034794,7]
[327007219,1715707854030,-502.01323651,0.00034794,7]
[327007220,1715707854040,-500.0,0.00034794,7]
[327007221,1715707854049,-250.80718787,0.00034794,7]
[327007222,1715707854059,-501.23665323,0.00034794,7]
[327007223,1715707854069,-500.0,0.00034794,7]
[327007224,1715707854078,-500.0,0.00034794,7]
[327007225,1715707854088,-509.76664619,0.00034794,7]
[327007226,1715707854097,-500.0,0.00034794,7]
[327007227,1715707854227,-300.0,0.00034794,7]
[327007228,1715707854237,-509.089338,0.00034794,7]
[327007229,1715707854246,-783.17,0.00034794,7]
[327007230,1715707854255,-500.0,0.00034794,7]
[327007231,1715707854265,-500.0,0.00034794,7]
[327007232,1715707854275,-537.00746404,0.00034794,7]
[327007233,1715707854284,-1000.0,0.00034794,7]
[327007234,1715707854293,-500.0,0.00034794,7]
[327007235,1715707854302,-500.0,0.00034794,7]
[327007236,1715707854312,-2430.51,0.00034794,7]
[327007237,1715707854321,-500.0,0.00034794,7]
[327007238,1715707854330,-564.29,0.00034794,7]
[327007239,1715707854340,-939.97,0.00034794,7]
[327007240,1715707854350,-939.97,0.00034794,7]
[327007241,1715707854359,-939.97,0.00034794,7]
[327007242,1715707854368,-939.97,0.00034794,7]
[327007243,1715707854378,-939.97,0.00034794,7]
[327007244,1715707854387,-939.97,0.00034794,7]
[327007245,1715707854396,-939.97,0.00034794,7]
[327007246,1715707854406,-500.0,0.00034794,7]
[327007247,1715707854415,-939.97,0.00034794,7]
[327007248,1715707854424,-939.97,0.00034794,7]
[327007249,1715707854434,-939.97,0.00034794,7]
[327007250,1715707854447,-939.97,0.00034794,7]
[327007251,1715707854456,-939.97,0.00034794,7]
[327007252,1715707854465,-939.97,0.00034794,7]
[327007253,1715707854475,-939.97,0.00034794,7]
[327007254,1715707854486,-532.65,0.00034794,7]
[327007255,1715707854495,-939.97,0.00034794,7]
[327007256,1715707854505,-939.97,0.00034794,7]
[327007257,1715707854515,-939.97,0.00034794,7]
[327007258,1715707854525,-939.97,0.00034794,7]
[327007259,1715707854535,-939.97,0.00034794,7]
[327007260,1715707854544,-939.97,0.00034794,7]
[327007261,1715707854553,-939.97,0.00034794,7]
[327007262,1715707854562,-939.97,0.00034794,7]
[327007263,1715707854572,-939.97,0.00034794,7]
[327007264,1715707854581,-940.02225645,0.00034794,7]
[327007265,1715707854590,-442.3185059,0.00034794,7]
[327007266,1715707854599,-500.0,0.00034794,7]
[327007267,1715707854608,-177.34407596,0.00034794,7]
[327007268,1715707854617,-513.18138505,0.00034794,7]
[327007269,1715707854627,-706.0,0.00034794,7]
[327007270,1715707854636,-500.0,0.00034794,7]
[327007271,1715707854645,-500.0,0.00034794,7]
[327007272,1715707854655,-702.77,0.00034794,7]
[327007273,1715707854664,-500.0,0.00034794,7]
[327007274,1715707854673,-662.03,0.00034794,7]
[327007275,1715707854682,-500.0,0.00034794,7]
[327007276,1715707854691,-571.35,0.00034794,7]
[327007277,1715707854700,-571.35,0.00034794,7]
[327007278,1715707854708,-500.0,0.00034794,7]
[327007279,1715707854717,-571.35,0.00034794,7]
[327007280,1715707854726,-571.35,0.00034794,7]
[327007281,1715707854735,-571.35,0.00034794,7]
[327007282,1715707854744,-571.35,0.00034794,7]
[327007283,1715707854754,-571.35,0.00034794,7]
[327007284,1715707854763,-571.35,0.00034794,7]
[327007285,1715707854772,-500.0,0.00034794,7]
[327007286,1715707854781,-571.35,0.00034794,7]
[327007287,1715707854791,-571.35,0.00034794,7]
[327007288,1715707854800,-571.35,0.00034794,7]
[327007289,1715707854809,-571.35,0.00034794,7]
[327007290,1715707854818,-571.35,0.00034794,7]
[327007291,1715707854827,-571.35,0.00034794,7]
[327007292,1715707854836,-571.35,0.00034794,7]
[327007293,1715707854845,-571.35,0.00034794,7]
[327007294,1715707854854,-571.35,0.00034794,7]
[327007295,1715707854864,-571.35,0.00034794,7]
[327007296,1715707854873,-571.35,0.00034794,7]
[327007297,1715707854883,-571.35,0.00034794,7]
[327007298,1715707854892,-500.0,0.00034794,7]
[327007299,1715707854901,-571.35,0.00034794,7]
[327007300,1715707854910,-571.35,0.00034794,7]
[327007301,1715707854919,-571.35,0.00034794,7]
[327007302,1715707854929,-571.5078805,0.00034794,7]
[327007303,1715707854938,-545.56974313,0.00034794,7]
[327007304,1715707854947,-500.0,0.00034794,7]
[327007305,1715707854956,-500.0,0.00034794,7]
[327007306,1715707854965,-500.0,0.00034794,7]
[327007307,1715707854974,-500.0,0.00034794,7]
[327007308,1715707854984,-500.0,0.00034794,7]
[327007309,1715707854993,-500.0,0.00034794,7]
[327007310,1715707855002,-500.0,0.00034794,7]
[327007311,1715707855011,-500.0,0.00034794,7]
[327007312,1715707855020,-500.0,0.00034794,7]
[327007313,1715707855029,-500.0,0.00034794,7]
[327007314,1715707855038,-151.0,0.00034794,7]
[327007315,1715707855047,-658.04,0.00034794,7]
[327007316,1715707855056,-500.0,0.00034794,7]
[327007317,1715707855066,-500.0,0.00034794,7]
[327007318,1715707855075,-500.0,0.00034794,7]
[327007319,1715707855084,-500.0,0.00034794,7]
[327007320,1715707855093,-525.42925381,0.00034794,7]
[327007321,1715707855102,-500.0,0.00034794,2]
[327007322,1715707855111,-500.0,0.00034794,7]
[327007323,1715707855120,-500.0,0.00034794,7]
[327007324,1715707855130,-500.0,0.00034794,7]
[327007325,1715707855139,-509.53092932,0.00034794,7]
[327007326,1715707855149,-993.99,0.00034794,7]
[327007327,1715707855158,-501.95675717,0.00034794,7]
[327007328,1715707855167,-500.0,0.00034794,7]
[327007329,1715707855176,-506.15315635,0.00034794,7]
[327007330,1715707855185,-500.0,0.00034794,7]
[327007331,1715707855195,-500.0,0.00034794,7]
[327007332,1715707855204,-1000.0,0.00034794,7]
[327007333,1715707855214,-500.0,0.00034794,7]
[327007334,1715707855223,-500.0,0.00034794,7]
[327007335,1715707855233,-640.32996834,0.00034794,7]
[327007336,1715707855241,-500.0,0.00034794,7]
[327007337,1715707855251,-151.35704071,0.00034794,7]
[327007338,1715707855260,-500.0,0.00034794,7]
[327007339,1715707855269,-502.0490756,0.00034794,7]
[327007340,1715707855278,-500.0,0.00034794,7]
[327007341,1715707855287,-500.0,0.00034794,7]
[327007342,1715707855296,-500.0,0.00034794,7]
[327007343,1715707855306,-500.0,0.00034794,7]
[327007344,1715707855315,-333.94991113,0.00034794,7]
[327007345,1715707855324,-500.0,0.00034794,7]
[327007346,1715707855333,-500.0,0.00034794,7]
[327007347,1715707855342,-187.11300832,0.00034794,7]
[327007348,1715707855352,-500.0,0.00034794,7]
[327007349,1715707855361,-500.0,0.00034794,7]
[327007350,1715707855371,-500.0,0.00034794,7]
[327007351,1715707855380,-2353.61,0.00034794,7]
[327007352,1715707855390,-500.0,0.00034794,7]
[327007353,1715707855401,-500.0,0.00034794,7]
[327007354,1715707855411,-500.0,0.00034794,7]
[327007355,1715707855420,-155.81251909,0.00034794,7]
[327007356,1715707855428,-500.0,0.00034794,7]
[327007357,1715707855440,-500.0,0.00034794,7]
[327007358,1715707855454,-1169.72,0.00034794,7]
[327007359,1715707855464,-500.0,0.00034794,7]
[327007360,1715707855473,-500.0,0.00034794,7]
[327007361,1715707855485,-500.0,0.00034794,7]
[327007362,1715707855495,-500.0,0.00034794,7]
[327007363,1715707855504,-500.0,0.00034794,7]
[327007364,1715707855513,-1438.69,0.00034794,7]
[327007365,1715707855524,-500.0,0.00034794,7]
[327007366,1715707855533,-204.97329833,0.00034794,7]
[327007367,1715707855542,-500.0,0.00034794,7]
[327007368,1715707855551,-500.0,0.00034794,7]
[327007369,1715707855560,-500.0,0.00034794,7]
[327007370,1715707855570,-500.0,0.00034794,7]
[327007371,1715707855579,-500.0,0.00034794,7]
[327007372,1715707855589,-500.0,0.00034794,7]
[327007373,1715707855598,-500.0,0.00034794,7]
[327007374,1715707855607,-3040.2,0.00034794,7]
[327007375,1715707855617,-500.0,0.00034794,7]
[327007376,1715707855626,-500.0,0.00034794,7]
[327007377,1715707855636,-500.0,0.00034794,7]
[327007378,1715707855645,-500.0,0.00034794,7]
[327007379,1715707855655,-500.0,0.00034794,7]
[327007380,1715707855664,-500.0,0.00034794,7]
[327007381,1715707855674,-500.0,0.00034794,7]
[327007382,1715707855683,-500.0,0.00034794,7]
[327007383,1715707855692,-500.0,0.00034794,7]
[327007384,1715707855701,-500.0,0.00034794,7]
[327007385,1715707855711,-500.0,0.00034794,7]
[327007386,1715707855720,-500.0,0.00034794,7]
[327007387,1715707855729,-500.0,0.00034794,7]
[327007388,1715707855738,-500.0,0.00034794,7]
[327007389,1715707855748,-219.04036331,0.00034794,7]
[327007390,1715707855757,-646.06,0.00034794,7]
[327007391,1715707855766,-500.0,0.00034794,7]
[327007392,1715707855775,-500.0,0.00034794,7]